fUST/lending_fUST_20250715
["ID","MTS","AMOUNT","RATE_DAILY","PERIOD"]
[372127020,1752531047790,-6139.27144092,0.00024607,2]
[372127021,1752531047800,-5514.54275241,0.00024614,2]
[372127022,1752531047811,-350.0,0.00024646,2]
[372127023,1752531047821,-738.22,0.00024657,3]
[372127024,1752531047834,-552.53,0.00024657,3]
[372127025,1752531047853,-460.0,0.00024657,3]
[372127026,1752531047863,-670.62,0.00024657,3]
[372127027,1752531047873,-460.0,0.00024657,3]
[372127028,1752531047882,-460.0,0.00024657,3]
[372127029,1752531047892,-696.35,0.00024657,3]
[372127030,1752531047902,-654.26,0.00024657,3]
[372127031,1752531047912,-976.96,0.00024657,3]
[372127032,1752531047922,-460.0,0.00024657,3]
[372127033,1752531047932,-3397.88,0.00024657,3]
[372127034,1752531047941,-460.0,0.00024657,3]
[372127035,1752531047951,-7036.47,0.00024657,3]
[372127036,1752531047960,-300.0,0.00024657,2]
[372127037,1752531047971,-300.0,0.00024657,2]
[372127038,1752531047980,-322.07201774,0.00024657,2]
[372127039,1752531047990,-832.35,0.00024657,3]
[372127040,1752531048000,-320.15308212,0.00024658,14]
[372127041,1752531048011,-164.57200684,0.00024658,2]
[372127042,1752531048020,-380.0,0.00024658,2]
[372127043,1752531048030,-1835.59248973,0.00024659,11]
[372127044,1752531048040,-5514.54275241,0.0002467,2]
[372127045,1752531048050,-5514.54275241,0.00024727,2]
[372127046,1752531048060,-571.34,0.00024735,14]
[372127047,1752531048070,-660.0,0.00024741,2]
[372127048,1752531048080,-1071.0,0.00024773,2]
[372127049,1752531048090,-5514.54275241,0.00024783,2]
[372127050,1752531048100,-150.0,0.000248,2]
[372127051,1752531048110,-2000.0,0.000248,2]
[372127052,1752531048120,-5514.54275241,0.00024839,2]
[372127053,1752531048130,-1835.59248973,0.00024866,12]
[372127054,1752531048139,-151.0,0.00024873,7]
[372127055,1752531048149,-151.0,0.00024873,7]
[372127056,1752531048159,-151.0,0.00024873,7]
[372127057,1752531048170,-151.0,0.00024873,7]
[372127058,1752531048285,-151.0,0.00024873,7]
[372127059,1752531048303,-2700.92070189,0.00024873,2]
[372127060,1752531048314,-151.0,0.00024887,7]
[372127061,1752531048324,-151.0,0.00024887,7]
[372127062,1752531048334,-151.0,0.00024887,7]
[372127063,1752531048344,-151.0,0.00024887,7]
[372127064,1752531048354,-151.0,0.00024887,7]
[372127065,1752531048364,-151.0,0.00024887,7]
[372127066,1752531048374,-151.0,0.00024887,7]
[372127067,1752531048384,-151.0,0.00024887,7]
[372127068,1752531048394,-151.0,0.00024887,7]
[372127069,1752531048403,-151.0,0.00024887,7]
[372127070,1752531048413,-151.0,0.00024887,7]
[372127071,1752531048427,-151.0,0.00024887,7]
[372127072,1752531048436,-151.0,0.00024887,7]
[372127073,1752531048446,-151.0,0.00024887,7]
[372127074,1752531048455,-151.0,0.00024887,7]
[372127075,1752531048465,-151.0,0.00024887,7]
[372127076,1752531048476,-151.0,0.00024887,7]
[372127077,1752531048485,-151.0,0.00024887,7]
[372127078,1752531048496,-151.0,0.00024887,7]
[372127079,1752531048505,-151.0,0.00024887,7]
[372127080,1752531048515,-151.0,0.00024887,7]
[372127081,1752531048524,-151.0,0.00024887,7]
[372127082,1752531048534,-155.275634,0.00024887,7]
[372127083,1752531048544,-151.0,0.00024887,7]
[372127084,1752531048553,-151.0,0.00024887,7]
[372127085,1752531048563,-151.0,0.00024887,7]
[372127086,1752531048573,-151.339883,0.00024887,7]
[372127087,1752531048582,-151.0,0.00024887,7]
[372127088,1752531048592,-5514.54275241,0.00024895,2]
[372127089,1752531048605,-151.0,0.000249,7]
[372127090,1752531048614,-151.0,0.000249,7]
[372127091,1752531048623,-151.0,0.000249,7]
[372127092,1752531048633,-151.0,0.000249,7]
[372127093,1752531048643,-151.0,0.000249,7]
[372127094,1752531048653,-151.0,0.000249,7]
[372127095,1752531048662,-151.0,0.000249,7]
[372127096,1752531048671,-151.0,0.000249,7]
[372127097,1752531048681,-151.0,0.000249,7]
[372127098,1752531048690,-151.0,0.000249,7]
[372127099,1752531048700,-151.0,0.000249,7]
[372127100,1752531048709,-151.0,0.000249,7]
[372127101,1752531048718,-151.0,0.000249,7]
[372127102,1752531048726,-261.495596,0.000249,7]
[372127103,1752531048735,-151.0,0.000249,7]
[372127104,1752531048745,-151.0,0.000249,7]
[372127105,1752531048754,-151.0,0.000249,7]
[372127106,1752531048763,-151.0,0.000249,7]
[372127107,1752531048773,-151.0,0.000249,7]
[372127108,1752531048782,-151.0,0.000249,7]
[372127109,1752531048791,-151.0,0.000249,7]
[372127110,1752531048801,-151.0,0.000249,7]
[372127111,1752531048811,-151.0,0.000249,7]
[372127112,1752531048820,-151.0,0.000249,7]
[372127113,1752531048829,-151.0,0.000249,7]
[372127114,1752531048839,-151.0,0.000249,7]
[372127115,1752531048850,-151.0,0.000249,7]
[372127116,1752531048860,-151.0,0.000249,7]
[372127117,1752531048869,-151.0,0.000249,7]
[372127118,1752531048879,-641285.251586,0.000249,2]
[372127119,1752531048888,-151.0,0.000249,7]
[372127120,1752531048898,-151.0,0.000249,7]
[372127121,1752531048907,-151.0,0.000249,7]
[372127122,1752531048917,-151.0,0.000249,7]
[372127123,1752531048926,-151.0,0.000249,7]
[372127124,1752531048935,-151.0,0.000249,7]
[372127125,1752531048945,-151.0,0.000249,7]
[372127126,1752531048954,-227.114606,0.000249,7]
[372127127,1752531048964,-227.114606,0.000249,7]
[372127128,1752531048973,-151.0,0.000249,7]
[372127129,1752531048983,-460.0,0.00024931,3]
[372127130,1752531048992,-738.22,0.00024931,3]
[372127131,1752531049002,-552.53,0.00024931,3]
[372127132,1752531049011,-460.0,0.00024931,3]
[372127133,1752531049021,-670.62,0.00024931,3]
[372127134,1752531049030,-460.0,0.00024931,3]
[372127135,1752531049039,-460.0,0.00024931,3]
[372127136,1752531049048,-696.35,0.00024931,3]
[372127137,1752531049058,-654.26,0.00024931,3]
[372127138,1752531049067,-976.96,0.00024931,3]
[372127139,1752531049077,-460.0,0.00024931,3]
[372127140,1752531049086,-3397.88,0.00024931,3]
[372127141,1752531049095,-460.0,0.00024931,3]
[372127142,1752531049107,-7036.47,0.00024931,3]
[372127143,1752531049116,-832.35,0.00024931,3]
[372127144,1752531049125,-192.0,0.00024932,7]
[372127145,1752531049135,-5514.54275241,0.00024952,2]
[372127146,1752531049144,-500.0,0.00024959,2]
[372127147,1752531049153,-500.0,0.00024986,2]
[372127148,1752531049163,-293.90041972,0.00024999,2]
[372127149,1752531049173,-50434.80772086,0.00025,2]
[372127150,1752531049182,-2616.92530212,0.00025,2]
[372127151,1752531049191,-207.51224454,0.00025,2]
[372127152,1752531049201,-10364.0,0.00025,2]
[372127153,1752531049211,-358.27795413,0.00025,2]
[372127154,1752531049220,-500.0,0.00025,2]
[372127155,1752531049230,-300.0,0.00025,30]
[372127156,1752531049239,-120000.0,0.00025,2]
[372127157,1752531049248,-5926.66351075,0.00025,5]
[372127158,1752531049258,-600.0,0.00025,2]
[372127159,1752531049268,-525.46609069,0.00025,10]
[372127160,1752531049278,-2645.0,0.00025,10]
[372127161,1752531049288,-31257.97170708,0.00025,3]
[372127162,1752531049302,-278158.39407549,0.00025,3]
[372127163,1752531049312,-250.07871644,0.00025,60]
[372127164,1752531049321,-2133.74653908,0.00025,2]
[372127165,1752531049331,-2034.66197917,0.00025,14]
[372127166,1752531049342,-54271.53032041,0.00025,30]
[372127167,1752531049353,-1062.5277316,0.00025,2]
[372127168,1752531049362,-15982.56725224,0.00025,2]
[372127169,1752531049373,-66579.51230951,0.00025,2]
[372127170,1752531049384,-214.31236108,0.00025,3]
[372127171,1752531049394,-151.0,0.00025,7]
[372127172,1752531049403,-151.0,0.00025,7]
[372127173,1752531049413,-151.0,0.00025,7]
[372127174,1752531049422,-151.0,0.00025,7]
[372127175,1752531049432,-153.937576,0.00025,7]
[372127176,1752531049441,-151.0,0.00025,7]
[372127177,1752531049451,-151.0,0.00025,7]
[372127178,1752531049461,-151.0,0.00025,7]
[372127179,1752531049471,-151.0,0.00025,7]
[372127180,1752531049480,-263.095971,0.00025,7]
[372127181,1752531049490,-151.0,0.00025,7]
[372127182,1752531049499,-151.0,0.00025,7]
[372127183,1752531049508,-151.0,0.00025,7]
[372127184,1752531049518,-151.0,0.00025,7]
[372127185,1752531049527,-151.0,0.00025,7]
[372127186,1752531049536,-151.0,0.00025,7]
[372127187,1752531049546,-151.0,0.00025,7]
[372127188,1752531049555,-151.0,0.00025,7]
[372127189,1752531049565,-151.0,0.00025,7]
[372127190,1752531049574,-151.0,0.00025,7]
[372127191,1752531049595,-158.0,0.00025,7]
[372127192,1752531049607,-151.0,0.00025,7]
[372127193,1752531049617,-192.0,0.00025,7]
[372127194,1752531049627,-151.0,0.00025,7]
[372127195,1752531049636,-151.0,0.00025,7]
[372127196,1752531049647,-152.079842,0.00025,7]
[372127197,1752531049658,-151.0,0.00025,7]
[372127198,1752531049671,-151.0,0.00025,7]
[372127199,1752531049681,-151.0,0.00025,7]
[372127200,1752531049691,-161.824296,0.00025,7]
[372127201,1752531049702,-151.0,0.00025,7]
[372127202,1752531049712,-151.0,0.00025,7]
[372127203,1752531049722,-151.0,0.00025,7]
[372127204,1752531049731,-151.0,0.00025,7]
[372127205,1752531049742,-278.778831,0.00025,7]
[372127206,1752531049753,-151.0,0.00025,7]
[372127207,1752531049763,-151.0,0.00025,7]
[372127208,1752531049773,-151.0,0.00025,7]
[372127209,1752531049783,-151.0,0.00025,7]
[372127210,1752531049793,-151.0,0.00025,7]
[372127211,1752531049803,-151.0,0.00025,7]
[372127212,1752531049812,-151.0,0.00025,7]
[372127213,1752531049822,-151.0,0.00025,7]
[372127214,1752531049831,-151.0,0.00025,7]
[372127215,1752531049841,-151.0,0.00025,7]
[372127216,1752531049851,-151.0,0.00025,7]
[372127217,1752531049861,-151.0,0.00025,7]
[372127218,1752531049871,-151.0,0.00025,7]
[372127219,1752531049880,-1976.408323,0.00025,5]
[372127220,1752531049890,-151.0,0.00025,7]
[372127221,1752531049900,-221.648769,0.00025,3]
[372127222,1752531049909,-151.0,0.00025,7]
[372127223,1752531049919,-151.0,0.00025,7]
[372127224,1752531049929,-250.0,0.00025,2]
[372127225,1752531049939,-151.0,0.00025,7]
[372127226,1752531049949,-151.0,0.00025,7]
[372127227,1752531049958,-151.0,0.00025,7]
[372127228,1752531049968,-221.648769,0.00025,3]
[372127229,1752531049978,-151.0,0.00025,7]
[372127230,1752531049988,-151.0,0.00025,7]
[372127231,1752531049997,-151.0,0.00025,7]
[372127232,1752531050007,-151.0,0.00025,7]
[372127233,1752531050017,-525.46609069,0.00025,30]
[372127234,1752531050027,-151.0,0.00025,7]
[372127235,1752531050037,-151.0,0.00025,7]
[372127236,1752531050047,-151.0,0.00025,7]
[372127237,1752531050057,-151.0,0.00025,7]
[372127238,1752531050066,-151.0,0.00025,7]
[372127239,1752531050076,-203.01433,0.00025,2]
[372127240,1752531050086,-151.0,0.00025,7]
[372127241,1752531050096,-227.114606,0.00025,7]
[372127242,1752531050107,-227.114606,0.00025,7]
[372127243,1752531050117,-151.0,0.00025,7]
[372127244,1752531050127,-1000.0,0.00025,2]
[372127245,1752531050137,-5514.54275241,0.00025008,2]
[372127246,1752531050146,-500.0,0.00025014,2]
[372127247,1752531050156,-500.0,0.00025041,2]
[372127248,1752531050166,-5514.54275241,0.00025064,2]
[372127249,1752531050175,-500.0,0.00025069,2]
[372127250,1752531050185,-2093.25,0.0002507,4]
[372127251,1752531050195,-1835.59248973,0.00025072,12]
[372127252,1752531050208,-168.0,0.00025077,2]
[372127253,1752531050218,-500.0,0.00025096,2]
[372127254,1752531050228,-958.08,0.000251,7]
[372127255,1752531050238,-250.0,0.000251,2]
[372127256,1752531050247,-151.0,0.00025118,7]
[372127257,1752531050258,-151.0,0.00025118,7]
[372127258,1752531050268,-151.0,0.00025118,7]
[372127259,1752531050278,-151.0,0.00025118,7]
[372127260,1752531050288,-151.0,0.00025118,7]
[372127261,1752531050302,-151.0,0.00025121,7]
[372127262,1752531050312,-151.0,0.00025121,7]
[372127263,1752531050322,-151.0,0.00025121,7]
[372127264,1752531050332,-151.0,0.00025121,7]
[372127265,1752531050343,-151.0,0.00025121,7]
[372127266,1752531050353,-151.0,0.00025121,7]
[372127267,1752531050363,-151.0,0.00025121,7]
[372127268,1752531050374,-151.0,0.00025121,7]
[372127269,1752531050384,-151.0,0.00025121,7]
[372127270,1752531050394,-151.0,0.00025121,7]
[372127271,1752531050403,-151.0,0.00025121,7]
[372127272,1752531050415,-151.0,0.00025121,7]
[372127273,1752531050424,-151.0,0.00025121,7]
[372127274,1752531050434,-151.0,0.00025121,7]
[372127275,1752531050444,-151.0,0.00025121,7]
[372127276,1752531050454,-185.35799,0.00025121,7]
[372127277,1752531050465,-151.0,0.00025121,7]
[372127278,1752531050474,-151.0,0.00025121,7]
[372127279,1752531050484,-151.0,0.00025121,7]
[372127280,1752531050494,-151.0,0.00025121,7]
[372127281,1752531050503,-151.0,0.00025121,7]
[372127282,1752531050513,-151.0,0.00025121,7]
[372127283,1752531050523,-151.0,0.00025121,7]
[372127284,1752531050532,-151.0,0.00025121,7]
[372127285,1752531050542,-151.0,0.00025121,7]
[372127286,1752531050551,-151.0,0.00025121,7]
[372127287,1752531050560,-246.398617,0.00025121,7]
[372127288,1752531050570,-151.0,0.00025121,7]
[372127289,1752531050579,-151.0,0.00025121,7]
[372127290,1752531050589,-151.0,0.00025121,7]
[372127291,1752531050600,-151.0,0.00025121,7]
[372127292,1752531050610,-151.0,0.00025121,7]
[372127293,1752531050619,-211.026788,0.00025121,7]
[372127294,1752531050629,-151.0,0.00025121,7]
[372127295,1752531050638,-151.0,0.00025121,7]
[372127296,1752531050647,-151.0,0.00025121,7]
[372127297,1752531050657,-151.0,0.00025121,7]
[372127298,1752531050669,-151.0,0.00025121,7]
[372127299,1752531050678,-151.0,0.00025121,7]
[372127300,1752531050688,-151.0,0.00025121,7]
[372127301,1752531050698,-242.50504,0.00025121,7]
[372127302,1752531050707,-151.0,0.00025121,7]
[372127303,1752531050717,-151.0,0.00025121,7]
[372127304,1752531050726,-151.0,0.00025121,7]
[372127305,1752531050736,-151.0,0.00025121,7]
[372127306,1752531050745,-251.898311,0.00025121,7]
[372127307,1752531050755,-151.0,0.00025121,7]
[372127308,1752531050764,-151.0,0.00025121,7]
[372127309,1752531050774,-151.0,0.00025121,7]
[372127310,1752531050784,-151.0,0.00025121,7]
[372127311,1752531050794,-151.0,0.00025121,7]
[372127312,1752531050804,-151.0,0.00025121,7]
[372127313,1752531050814,-151.0,0.00025121,7]
[372127314,1752531050824,-500.0,0.00025123,2]
[372127315,1752531050834,-152.71345,0.00025127,7]
[372127316,1752531050844,-151.0,0.00025127,7]
[372127317,1752531050854,-151.0,0.00025127,7]
[372127318,1752531050863,-151.0,0.00025127,7]
[372127319,1752531050874,-151.0,0.00025127,7]
[372127320,1752531050884,-151.0,0.00025127,7]
[372127321,1752531050894,-151.0,0.00025127,7]
[372127322,1752531050903,-151.0,0.00025127,7]
[372127323,1752531050913,-151.0,0.00025127,7]
[372127324,1752531050923,-151.0,0.00025127,7]
[372127325,1752531050932,-151.0,0.00025127,7]
[372127326,1752531050942,-151.0,0.00025127,7]
[372127327,1752531050951,-151.0,0.00025127,7]
[372127328,1752531050961,-223.793686,0.00025127,7]
[372127329,1752531050971,-151.0,0.00025127,7]
[372127330,1752531050980,-151.0,0.00025127,7]
[372127331,1752531050990,-151.0,0.00025127,7]
[372127332,1752531051000,-151.0,0.00025127,7]
[372127333,1752531051010,-151.0,0.00025127,7]
[372127334,1752531051019,-151.0,0.00025127,7]
[372127335,1752531051028,-151.0,0.00025127,7]
[372127336,1752531051038,-151.0,0.00025127,7]
[372127337,1752531051048,-151.0,0.00025127,7]
[372127338,1752531051057,-151.0,0.00025127,7]
[372127339,1752531051067,-151.0,0.00025127,7]
[372127340,1752531051076,-151.0,0.00025127,7]
[372127341,1752531051218,-251.568854,0.00025127,7]
[372127342,1752531051228,-151.0,0.00025127,7]
[372127343,1752531051238,-151.0,0.00025127,7]
[372127344,1752531051248,-151.0,0.00025127,7]
[372127345,1752531051258,-151.0,0.00025127,7]
[372127346,1752531051268,-151.0,0.00025127,7]
[372127347,1752531051278,-151.0,0.00025127,7]
[372127348,1752531051288,-296.556394,0.00025127,7]
[372127349,1752531051302,-151.0,0.00025127,7]
[372127350,1752531051312,-151.0,0.00025127,7]
[372127351,1752531051322,-151.0,0.00025127,7]
[372127352,1752531051331,-151.0,0.00025127,7]
[372127353,1752531051341,-238.128338,0.00025127,7]
[372127354,1752531051351,-151.0,0.00025127,7]
[372127355,1752531051360,-154.902806,0.00025127,7]
[372127356,1752531051371,-151.0,0.00025127,7]
[372127357,1752531051381,-151.0,0.00025127,7]
[372127358,1752531051390,-151.0,0.00025127,7]
[372127359,1752531051409,-273.157077,0.00025127,7]
[372127360,1752531051420,-151.0,0.00025127,7]
[372127361,1752531051430,-151.0,0.00025127,7]
[372127362,1752531051440,-151.0,0.00025127,7]
[372127363,1752531051450,-151.0,0.00025127,7]
[372127364,1752531051461,-151.0,0.00025127,7]
[372127365,1752531051471,-151.0,0.00025127,7]
[372127366,1752531051481,-151.0,0.00025127,7]
[372127367,1752531051491,-151.0,0.00025127,7]
[372127368,1752531051502,-151.0,0.00025127,7]
[372127369,1752531051511,-204.316408,0.00025127,7]
[372127370,1752531051522,-151.0,0.00025127,7]
[372127371,1752531051531,-151.0,0.00025127,7]
[372127372,1752531051542,-151.0,0.00025127,7]
[372127373,1752531051551,-151.0,0.00025127,7]
[372127374,1752531051562,-151.0,0.00025127,7]
[372127375,1752531051572,-151.0,0.00025127,7]
[372127376,1752531051582,-151.0,0.00025127,7]
[372127377,1752531051592,-151.0,0.00025127,7]
[372127378,1752531051603,-151.0,0.00025127,7]
[372127379,1752531051613,-151.875815,0.00025127,7]
[372127380,1752531051623,-151.0,0.00025127,7]
[372127381,1752531051634,-151.0,0.00025127,7]
[372127382,1752531051643,-236.372806,0.00025127,7]
[372127383,1752531051653,-151.0,0.00025144,7]
[372127384,1752531051663,-151.0,0.00025144,7]
[372127385,1752531051674,-151.0,0.00025144,7]
[372127386,1752531051684,-151.0,0.00025144,7]
[372127387,1752531051694,-151.0,0.00025144,7]
[372127388,1752531051704,-151.0,0.00025144,7]
[372127389,1752531051714,-151.0,0.00025144,7]
[372127390,1752531051724,-199.26404,0.00025144,7]
[372127391,1752531051734,-151.0,0.00025144,7]
[372127392,1752531051743,-151.0,0.00025144,7]
[372127393,1752531051754,-151.0,0.00025144,7]
[372127394,1752531051763,-151.0,0.00025144,7]
[372127395,1752531051773,-151.0,0.00025144,7]
[372127396,1752531051783,-151.0,0.00025144,7]
[372127397,1752531051793,-219.077325,0.00025144,7]
[372127398,1752531051802,-500.0,0.00025151,2]
[372127399,1752531051812,-151.0,0.00025162,7]
[372127400,1752531051822,-151.0,0.00025164,7]
[372127401,1752531051832,-151.0,0.00025164,7]
[372127402,1752531051842,-151.0,0.00025164,7]
[372127403,1752531051853,-151.0,0.00025164,7]
[372127404,1752531051864,-151.0,0.00025164,7]
[372127405,1752531051874,-151.0,0.00025164,7]
[372127406,1752531051883,-151.0,0.00025164,7]
[372127407,1752531051894,-151.0,0.00025164,7]
[372127408,1752531051903,-151.0,0.00025164,7]
[372127409,1752531051913,-151.0,0.00025164,7]
[372127410,1752531051923,-151.0,0.00025164,7]
[372127411,1752531051934,-151.0,0.00025164,7]
[372127412,1752531051944,-151.0,0.00025164,7]
[372127413,1752531051954,-151.0,0.00025164,7]
[372127414,1752531051964,-151.0,0.00025164,7]
[372127415,1752531051975,-151.0,0.00025164,7]
[372127416,1752531051988,-151.0,0.00025164,7]
[372127417,1752531051999,-151.0,0.00025164,7]
[372127418,1752531052009,-151.0,0.00025164,7]
[372127419,1752531052019,-151.0,0.00025164,7]
[372127420,1752531052029,-151.0,0.00025164,7]
[372127421,1752531052038,-232.98768,0.00025164,7]
[372127422,1752531052048,-151.0,0.00025164,7]
[372127423,1752531052058,-151.0,0.00025164,7]
[372127424,1752531052069,-151.0,0.00025164,7]
[372127425,1752531052079,-151.0,0.00025164,7]
[372127426,1752531052089,-151.0,0.00025164,7]
[372127427,1752531052099,-151.0,0.00025164,7]
[372127428,1752531052109,-151.0,0.00025164,7]
[372127429,1752531052119,-151.0,0.00025164,7]
[372127430,1752531052128,-151.0,0.00025164,7]
[372127431,1752531052138,-151.0,0.00025164,7]
[372127432,1752531052148,-151.0,0.00025164,7]
[372127433,1752531052158,-151.0,0.00025164,7]
[372127434,1752531052167,-151.0,0.00025164,7]
[372127435,1752531052177,-225.460394,0.00025164,7]
[372127436,1752531052187,-151.0,0.00025164,7]
[372127437,1752531052197,-154.823331,0.00025164,7]
[372127438,1752531052206,-151.0,0.00025164,7]
[372127439,1752531052216,-151.0,0.00025164,7]
[372127440,1752531052226,-151.0,0.00025164,7]
[372127441,1752531052236,-151.0,0.00025164,7]
[372127442,1752531052246,-151.0,0.00025164,7]
[372127443,1752531052256,-151.0,0.00025164,7]
[372127444,1752531052266,-151.0,0.00025164,7]
[372127445,1752531052276,-151.0,0.00025164,7]
[372127446,1752531052285,-151.0,0.00025164,7]
[372127447,1752531052300,-154.156843,0.00025164,7]
[372127448,1752531052310,-151.0,0.00025164,7]
[372127449,1752531052320,-151.0,0.00025164,7]
[372127450,1752531052330,-151.0,0.00025164,7]
[372127451,1752531052340,-151.0,0.00025164,7]
[372127452,1752531052351,-151.0,0.00025164,7]
[372127453,1752531052361,-151.0,0.00025164,7]
[372127454,1752531052372,-151.0,0.00025164,7]
[372127455,1752531052382,-176.702734,0.00025164,7]
[372127456,1752531052391,-2093.25,0.0002517,6]
[372127457,1752531052401,-151.0,0.00025172,7]
[372127458,1752531052411,-151.0,0.00025172,7]
[372127459,1752531052420,-151.0,0.00025172,7]
[372127460,1752531052430,-151.0,0.00025172,7]
[372127461,1752531052441,-151.0,0.00025172,7]
[372127462,1752531052451,-151.0,0.00025172,7]
[372127463,1752531052461,-151.0,0.00025172,7]
[372127464,1752531052471,-151.0,0.00025172,7]
[372127465,1752531052480,-151.0,0.00025172,7]
[372127466,1752531052490,-151.0,0.00025172,7]
[372127467,1752531052500,-300.477403,0.00025172,7]
[372127468,1752531052510,-500.0,0.00025178,2]
[372127469,1752531052519,-227.114606,0.00025188,7]
[372127470,1752531052530,-227.114606,0.00025188,7]
[372127471,1752531052539,-227.114606,0.00025188,7]
[372127472,1752531052549,-227.114606,0.00025188,7]
[372127473,1752531052558,-227.114606,0.00025188,7]
[372127474,1752531052567,-227.114606,0.00025188,7]
[372127475,1752531052577,-227.114606,0.00025188,7]
[372127476,1752531052586,-227.114606,0.00025188,7]
[372127477,1752531052596,-227.114606,0.00025188,7]
[372127478,1752531052607,-227.114606,0.00025188,7]
[372127479,1752531052617,-227.114606,0.00025188,7]
[372127480,1752531052627,-227.114606,0.00025188,7]
[372127481,1752531052636,-227.114606,0.00025188,7]
[372127482,1752531052646,-227.114606,0.00025188,7]
[372127483,1752531052656,-227.114606,0.00025188,7]
[372127484,1752531052666,-227.114609,0.00025188,7]
[372127485,1752531052675,-2026612.27692087,0.00025188,20]
[372127486,1752531052803,-257.71,0.00025188,20]
[372127487,1752531052815,-31677.64015211,0.00025188,20]
[372127488,1752531052826,-311.0,0.00025188,20]
[372127490,1752531343348,250.078208,0.00013699,2]
[372127491,1752531384908,150.0,0.00015019,2]
[372127492,1752531468098,150.0,0.00015239,2]
[372127493,1752531585470,150.0,0.00014748,2]
[372127502,1752531695743,150.0,0.00015492,2]
[372127503,1752531698541,154.27093246,0.000273,120]
[372127508,1752531825811,150.0,0.00015886,2]
[372127509,1752531902347,2016.119934,0.00027397,120]
[372127511,1752532120699,151.0,0.00025199,120]
[372127517,1752532148230,-230.73061749,0.00018856,2]
[372127518,1752532148251,-215.47013733,0.00018856,2]
[372127519,1752532148271,-525.46609069,0.00018896,2]
[372127520,1752532148291,-180.0,0.00018908,2]
[372127521,1752532148310,-284.91981695,0.00019161,2]
[372127522,1752532148332,-472.332391,0.00019178,2]
[372127523,1752532148352,-160.0,0.00019337,2]
[372127524,1752532148372,-160.0,0.00019337,2]
[372127525,1752532148391,-160.0,0.00019405,2]
[372127526,1752532148410,-838.70323114,0.00019405,2]
[372127527,1752532148430,-666.0,0.00019431,2]
[372127528,1752532148450,-824.13565309,0.00019541,2]
[372127529,1752532148472,-300.0,0.00019598,2]
[372127530,1752532148491,-468.75,0.00019599,2]
[372127531,1752532148511,-12600.81778503,0.00019599,2]
[372127532,1752532148531,-214.33456592,0.00019741,2]
[372127533,1752532148559,-1200.0,0.00019745,2]
[372127534,1752532148589,-160.0,0.00019774,2]
[372127535,1752532148612,-160.0,0.00019839,2]
[372127536,1752532148641,-680.6039146,0.00019936,2]
[372127537,1752532148669,-160.0,0.00019945,2]
[372127538,1752532148695,-83876.37049579,0.00019989,2]